[Event "FRA-ch Teams Top 16-A 2022"]
[Site "Chartres"]
[Date "2022.06.14"]
[Round "6.19"]
[White "Tiviakov, Sergei"]
[Black "Jones, Gawain C B"]
[Result "1/2-1/2"]
[ECO "C54"]
[WhiteElo "2567"]
[BlackElo "2669"]
[Annotator "TA"]
[PlyCount "69"]
[EventDate "2022.06.09"]
[EventType "team-tourn"]
[EventCountry "FRA"]
[SourceTitle "playchess.com"]
[Source "ChessBase"]
[SourceQuality "1"]
[TimeControl "40/5400+30:1800+30"]

{[%evp 10,69,17,10,8,0,0,0,0,0,0,0,0,-10,-10,-18,0,-12,-13,-18,-9,-34,-27,-45,-24,-20,-19,-20,-20,-24,0,-25,0,0,0,-38,0,-34,0,0,0,0,0,0,0,0,0,0,0,-11,0,4,0,5,38,0,0,0,34,0,6,0]} 1. e4 {[%emt 0:00:05]} e5 {[%emt 0:00:55]} 2. Nf3 {[%emt 0:00:06]} Nc6 {[%emt 0:00:19]} 3. Bc4 {[%emt 0:00:08]} Nf6 {[%emt 0:00:14]} 4. d3 {[%emt 0:00:10]} Bc5 {[%emt 0:00:09]} 5. c3 {[%emt 0:00:07]} d6 {[%emt 0:00:19]} 6. Bb3 {[%emt 0:00:08]} a5 {[%emt 0:00:05] C54: Giuoco Piano: 4 c3 Nf6, main lines with 5 d4 and 5 d3.} 7. a4 {[%emt 0:01:49]} h6 {[%emt 0:00:41]} 8. O-O {[%emt 0:00:52]} O-O {[%emt 0:00:32]} 9. Re1 {[%emt 0:05:33]} Re8 {[%emt 0:02:47]} 10. Nbd2 {[%emt 0:13:49]} Be6 {[%emt 0:01:27]} 11. Bxe6 {[%emt 0:06:44]} Rxe6 {[%emt 0:00:14] [#]} 12. Qb3 $146 {[%emt 0:04:39]} ({Predecessor:} 12. Nc4 d5 13. exd5 Qxd5 14. Be3 e4 15. Bxc5 Qxc5 16. Nfd2 exd3 17. Rxe6 fxe6 18. Qf3 {1-0 (41) Chevallier,C-Jimenez,B Val Thorens 1994}) 12... Qd7 {[%emt 0:07:11]} 13. Nf1 {[%emt 0:04:17]} d5 {[%emt 0:07:40]} 14. Ng3 {[%emt 0:08:32]} Rd8 {[%emt 0:02:22]} 15. Bd2 {[%emt 0:07:48]} b6 {[%emt 0:17:19]} 16. Re2 {[%emt 0:01:45]} dxe4 {[%emt 0:16:24]} 17. dxe4 {[%emt 0:00:23]} Rd6 {[%emt 0:00:34]} 18. Rae1 {[%emt 0:03:10]} Ng4 {[%emt 0:11:12] aiming for ...Nxf2.} 19. Nf1 {[%emt 0:07:03]} Nf6 {[%emt 0:07:37]} 20. Ng3 {[%emt 0:00:45]} Rd3 {[%emt 0:01:53][%cal Oc6d4]} 21. Qc4 {[%emt 0:02:19] Prevents Nd4.} Ng4 {[%emt 0:05:51]} 22. Nf1 {[%emt 0:01:17]} Qd6 {[%emt 0:01:34]} 23. Ne3 {[%emt 0:07:34]} (23. Be3 $5) 23... Nxe3 {[%emt 0:01:10]} (23... Bxe3 {is interesting.} 24. Bxe3 Qf6 25. h3 Nxe3 26. Rxe3 R3d6) 24. Bxe3 {[%emt 0:00:04]} Bxe3 {[%emt 0:00:22]} 25. Rxe3 {[%emt 0:00:03]} Rxe3 {[%emt 0:00:09]} 26. Rxe3 {[%emt 0:00:04]} Ne7 {[%emt 0:01:07]} 27. Re2 {[%emt 0:00:22]} Qd1+ {[%emt 0:01:17]} 28. Re1 {[%emt 0:00:07]} Qd6 {[%emt 0:00:07]} 29. g3 {[%emt 0:05:23]} Ng6 {[%emt 0:00:29]} 30. Kg2 {[%emt 0:02:11]} Qd7 {[%emt 0:00:25][%cal Og6f4]} 31. h3 {[%emt 0:00:10]} c6 {[%emt 0:02:51]} 32. Re2 {[%emt 0:04:44] Strongly threatening Rd2.} Qd1 {[%emt 0:00:26] Prevents Rd2.} 33. Re1 {[%emt 0:00:28]} Qd7 {[%emt 0:01:08]} 34. Re2 {[%emt 0:00:57] Rd2 is the strong threat.} Qd1 {[%emt 0:00:07] Prevents Rd2.} 35. Re1 {[%emt 0:00:04] Weighted Error Value: White=0.09 (flawless) /Black=0.08 (flawless)} 1/2-1/2

[Event "FRA-ch Teams Top 16-A 2022"]
[Site "Chartres"]
[Date "2022.06.14"]
[Round "6.20"]
[White "Fedorchuk, Sergey A."]
[Black "Mamedov, Rauf"]
[Result "1/2-1/2"]
[ECO "B76"]
[WhiteElo "2606"]
[BlackElo "2656"]
[Annotator "TA"]
[PlyCount "32"]
[EventDate "2022.06.09"]
[EventType "team-tourn"]
[EventCountry "FRA"]
[SourceTitle "playchess.com"]
[Source "ChessBase"]
[SourceQuality "1"]
[TimeControl "40/5400+30:1800+30"]

{[%evp 31,32,0,0]} 1. e4 {[%emt 0:00:04]} c5 {[%emt 0:00:09]} 2. Nf3 {[%emt 0:02:08]} d6 {[%emt 0:01:30]} 3. d4 {[%emt 0:03:25]} cxd4 {[%emt 0:07:06]} 4. Nxd4 {[%emt 0:00:11]} Nf6 {[%emt 0:00:05]} 5. Nc3 {[%emt 0:00:11]} g6 {[%emt 0:00:04]} 6. Be3 {[%emt 0:04:55]} Bg7 {[%emt 0:01:27]} 7. f3 {[%emt 0:00:32]} Nc6 {[%emt 0:00:13]} 8. Qd2 {[%emt 0:01:42]} O-O {[%emt 0:00:27]} 9. O-O-O {[%emt 0:04:42]} d5 {[%emt 0:00:57]} 10. exd5 {[%emt 0:03:49]} Nxd5 {[%emt 0:00:08]} 11. Nxc6 {[%emt 0:00:11]} bxc6 {[%emt 0:00:03]} 12. Nxd5 {[%emt 0:05:54]} cxd5 {[%emt 0:01:02]} 13. Qxd5 {[%emt 0:00:05]} Qc7 {[%emt 0:00:26]} 14. Qc5 {[%emt 0:00:11]} Qb7 {[%emt 0:00:05] [#]} 15. Qb5 $146 {[%emt 0:00:34]} ({Predecessor:} 15. b3 Bf5 16. Bd3 Rac8 17. Qa5 Rc3 18. Bxf5 Rxe3 19. Be4 Qc8 20. g4 Qb8 21. Kb1 Qf4 22. Rd8 Bc3 23. Rxf8+ Kxf8 24. Qxa7 Re2 25. a3 Qxh2 26. Rd1 {½-½ (26) Kribben,M (2652)-Lecroq,M (2609) ICCF email 2011}) 15... Qc7 {[%emt 0:00:03]} 16. Qc5 {[%emt 0:00:25]} Qb7 $1 {[%emt 0:00:03]} 1/2-1/2

[Event "FRA-ch Teams Top 16-A 2022"]
[Site "Chartres"]
[Date "2022.06.14"]
[Round "6.22"]
[White "Edouard, Romain"]
[Black "Maurizzi, Marc`Andria"]
[Result "1/2-1/2"]
[ECO "A05"]
[WhiteElo "2575"]
[BlackElo "2490"]
[Annotator "RC"]
[PlyCount "91"]
[EventDate "2022.06.09"]
[EventType "team-tourn"]
[EventCountry "FRA"]
[SourceTitle "playchess.com"]
[Source "ChessBase"]
[SourceQuality "1"]
[TimeControl "40/5400+30:1800+30"]

1. Nf3 {[%emt 0:00:03]} Nf6 {[%emt 0:00:31]} 2. g3 {[%emt 0:00:21]} b6 {[%emt 0:00:50]} 3. Bg2 {[%emt 0:00:08]} Bb7 {[%emt 0:00:03]} 4. O-O {[%emt 0:00:11]} g6 {[%emt 0:00:22]} 5. d3 {[%emt 0:02:04]} d6 {[%emt 0:01:31]} 6. e4 {[%emt 0:00:12]} c5 {[%emt 0:00:08]} 7. Nh4 {[%emt 0:01:12]} Nc6 {[%emt 0:11:42]} 8. c3 {[%emt 0:01:32]} Bg7 {[%emt 0:04:28]} 9. d4 {[%emt 0:02:47]} e6 {[%emt 0:13:31]} 10. d5 {[%emt 0:01:50]} exd5 {[%emt 0:00:21]} 11. exd5 {[%emt 0:00:03]} Ne7 {[%emt 0:00:15]} 12. c4 {[%emt 0:00:07]} O-O {[%emt 0:09:18]} 13. Nc3 {[%emt 0:00:28]} h6 {[%emt 0:00:28]} 14. f4 {[%emt 0:04:15]} Bc8 {[%emt 0:05:21]} 15. h3 {[%emt 0:00:58]} h5 {[%emt 0:02:54]} 16. Kh2 {[%emt 0:05:40]} Nf5 {[%emt 0:46:47]} 17. Nf3 {[%emt 0:00:00]} Re8 18. Qd3 {[%emt 0:03:03]} Nd4 {[%emt 0:00:00]} 19. Nxd4 cxd4 20. Nb5 {[%emt 1:15:36]} Bf5 {[%emt 0:00:00]} 21. Qd1 {[%emt 0:00:00]} d3 22. Nd4 {[%emt 0:01:00]} Be4 {[%emt 0:03:00]} 23. Nc6 {[%emt 0:00:00]} Qd7 {[%emt 0:00:00]} 24. Bxe4 {[%emt 0:00:00]} Rxe4 {[%emt 0:00:00]} 25. Qxd3 {[%emt 0:00:00]} Rae8 {[%emt 0:01:30]} 26. f5 {[%emt 0:00:00]} h4 {[%emt 0:00:30]} 27. gxh4 {[%emt 0:00:00]} Re2+ {[%emt 0:00:00]} 28. Kg1 {[%emt 0:00:00]} Nh5 {[%emt 0:00:00]} 29. Bd2 {[%emt 0:00:00]} R8e4 {[%emt 0:00:00]} 30. Rae1 {[%emt 0:00:00]} Qe8 {[%emt 0:00:00]} 31. Rxe2 {[%emt 0:00:00]} Rxe2 {[%emt 0:00:00]} 32. b4 {[%emt 0:00:00]} Bf6 {[%emt 0:00:00]} 33. fxg6 {[%emt 0:00:00]} fxg6 {[%emt 0:00:00]} 34. Rf3 {[%emt 0:00:00]} Kh7 {[%emt 0:01:19]} 35. Re3 {[%emt 0:00:00]} Rxe3 {[%emt 0:00:24]} 36. Qxe3 {[%emt 0:00:00]} Qf8 {[%emt 0:00:06]} 37. Nd4 {[%emt 0:00:00]} Bxd4 {[%emt 0:01:09]} 38. Qxd4 {[%emt 0:00:00]} Qf3 {[%emt 0:02:23]} 39. Bc3 {[%emt 0:00:00]} Kg8 {[%emt 0:01:09]} 40. b5 {[%emt 0:00:09]} Qxh3 41. a4 {[%emt 0:01:25]} Kf7 42. a5 {[%emt 0:38:26]} Qg3+ {[%emt 0:07:51]} 43. Kf1 {[%emt 0:00:00]} Nf4 {[%emt 0:00:57]} 44. Qg7+ {[%emt 0:00:00]} Ke8 {[%emt 0:01:01]} 45. Qg8+ {[%emt 0:00:00]} Ke7 {[%emt 0:00:10]} 46. Qg7+ {[%emt 0:00:00]} 1/2-1/2

[Event "FRA-ch Teams Top 16-A 2022"]
[Site "Chartres"]
[Date "2022.06.14"]
[Round "6.23"]
[White "Guliyev, Namig"]
[Black "David, Alberto"]
[Result "1/2-1/2"]
[ECO "B44"]
[WhiteElo "2547"]
[BlackElo "2520"]
[Annotator "RC"]
[PlyCount "31"]
[EventDate "2022.06.09"]
[EventType "team-tourn"]
[EventCountry "FRA"]
[SourceTitle "playchess.com"]
[Source "ChessBase"]
[SourceQuality "1"]
[TimeControl "40/5400+30:1800+30"]

1. e4 {[%emt 0:02:16]} c5 {[%emt 0:00:04]} 2. Nf3 {[%emt 0:00:07]} e6 {[%emt 0:00:05]} 3. d4 {[%emt 0:00:04]} cxd4 {[%emt 0:00:04]} 4. Nxd4 {[%emt 0:00:05]} Nc6 {[%emt 0:00:04]} 5. Nb5 {[%emt 0:00:06]} d6 {[%emt 0:00:08]} 6. c4 {[%emt 0:00:06]} Nf6 {[%emt 0:00:10]} 7. N1c3 {[%emt 0:01:03]} a6 {[%emt 0:00:13]} 8. Nd4 {[%emt 0:01:00]} Bd7 {[%emt 0:00:30]} 9. Be3 {[%emt 0:03:04]} Be7 {[%emt 0:00:46]} 10. Be2 {[%emt 0:02:42]} Rc8 {[%emt 0:00:58]} 11. Rc1 {[%emt 0:03:54]} Ne5 {[%emt 0:24:25]} 12. b3 {[%emt 0:03:20]} Qa5 {[%emt 0:00:04]} 13. Bd2 {[%emt 0:17:38]} Qc5 {[%emt 0:04:29]} 14. Be3 {[%emt 0:00:31]} Qa5 {[%emt 0:00:17]} 15. Bd2 {[%emt 0:04:01]} Qc5 {[%emt 0:00:21]} 16. Be3 {[%emt 0:00:06]} 1/2-1/2

[Event "FRA-ch Teams Top 16-A 2022"]
[Site "Chartres"]
[Date "2022.06.14"]
[Round "6.24"]
[White "Alexieva, Silvia"]
[Black "Martsynovskaya, Marina"]
[Result "0-1"]
[ECO "A14"]
[WhiteElo "2219"]
[BlackElo "2070"]
[Annotator "NA RC"]
[PlyCount "78"]
[EventDate "2022.06.09"]
[EventType "team-tourn"]
[EventCountry "FRA"]
[SourceTitle "playchess.com"]
[Source "ChessBase"]
[SourceQuality "1"]
[TimeControl "40/5400+30:1800+30"]

1. c4 {[%emt 0:00:07]} e6 {[%emt 0:09:21]} 2. Nf3 {[%emt 0:01:51]} d5 {[%emt 0:01:24]} 3. g3 {[%emt 0:01:03]} Nf6 {[%emt 0:00:35]} 4. Bg2 {[%emt 0:01:03]} a6 {[%emt 0:02:03]} 5. b3 {[%emt 0:03:30]} c5 {[%emt 0:00:29]} 6. O-O {[%emt 0:01:43]} Nc6 {[%emt 0:03:05]} 7. e3 {[%emt 0:01:53]} Be7 {[%emt 0:12:18]} 8. Bb2 {[%emt 0:00:29]} O-O {[%emt 0:00:21]} 9. Qe2 {[%emt 0:01:44]} Qc7 {[%emt 0:03:33]} 10. Rc1 {[%emt 0:08:53]} b6 {[%emt 0:15:00]} 11. cxd5 {[%emt 0:09:34]} Nxd5 {[%emt 0:08:25]} 12. e4 {[%emt 0:02:33]} Nf6 {[%emt 0:00:39]} 13. e5 {[%emt 0:07:50]} Nd5 {[%emt 0:00:06]} 14. d3 {[%emt 0:01:37]} Rd8 {[%emt 0:04:33]} 15. a3 {[%emt 0:00:18]} Bb7 {[%emt 0:01:00]} 16. Nbd2 {[%emt 0:00:30]} a5 {[%emt 0:03:39]} 17. h4 {[%emt 0:04:33]} a4 {[%emt 0:01:19]} 18. bxa4 {[%emt 0:01:41]} Rxa4 {[%emt 0:00:29]} 19. Rc4 {[%emt 0:00:08]} Rda8 {[%emt 0:05:38]} 20. Ne4 {[%emt 0:10:31]} b5 {[%emt 0:04:41]} 21. Rxa4 {[%emt 0:03:33]} Rxa4 {[%emt 0:00:05]} 22. Qc2 {[%emt 0:01:54]} Na5 {[%emt 0:08:26]} 23. h5 {[%emt 0:14:51]} h6 {[%emt 0:01:39]} 24. Rc1 {[%emt 0:03:54]} c4 {[%emt 0:01:09]} 25. Nd4 {[%emt 0:01:09]} Qb6 {[%emt 0:02:33]} 26. Nd6 {[%emt 0:03:08]} Bxd6 {[%emt 0:02:28]} 27. exd6 {[%emt 0:00:05]} c3 {[%emt 0:00:25]} 28. Bxd5 {[%emt 0:06:25]} cxb2 {[%emt 0:01:31]} 29. Qxb2 {[%emt 0:00:57]} Rxd4 {[%emt 0:00:47]} 30. Bxb7 {[%emt 0:00:22]} Nxb7 {[%emt 0:00:19]} 31. Rc8+ {[%emt 0:00:03]} Kh7 {[%emt 0:01:57]} 32. Rb8 {[%emt 0:00:50]} Rxd6 {[%emt 0:01:38]} 33. Qb4 {[%emt 0:00:28]} Rd5 {[%emt 0:03:37]} 34. d4 {[%emt 0:03:34]} Rd8 {[%emt 0:00:17]} 35. Rxd8 {[%emt 0:00:37]} Nxd8 {[%emt 0:00:07]} 36. a4 {[%emt 0:00:18]} Nc6 {[%emt 0:00:43]} 37. Qf8 {[%emt 0:00:05]} bxa4 {[%emt 0:00:15]} 38. Qxf7 {[%emt 0:00:07]} Qb1+ {[%emt 0:00:07]} 39. Kh2 {[%emt 0:00:14]} a3 {[%emt 0:01:22]} 0-1

[Event "FRA-ch Teams Top 16-A 2022"]
[Site "Chartres"]
[Date "2022.06.14"]
[Round "6.25"]
[White "Sochacki, Christophe"]
[Black "Naiditsch, Arkadij"]
[Result "0-1"]
[ECO "D01"]
[WhiteElo "2493"]
[BlackElo "2654"]
[Annotator "RC"]
[PlyCount "114"]
[EventDate "2022.06.09"]
[EventType "team-tourn"]
[EventCountry "FRA"]
[SourceTitle "playchess.com"]
[Source "ChessBase"]
[SourceQuality "1"]
[TimeControl "40/5400+30:1800+30"]

1. d4 {[%emt 0:00:59]} Nf6 {[%emt 0:01:07]} 2. Bg5 {[%emt 0:00:09]} e6 {[%emt 0:02:35]} 3. Nc3 {[%emt 0:00:04]} h6 {[%emt 0:01:28]} 4. Bh4 {[%emt 0:00:19]} d5 {[%emt 0:03:24]} 5. e4 {[%emt 0:00:17]} g5 {[%emt 0:02:47]} 6. Bg3 {[%emt 0:00:05]} Nxe4 {[%emt 0:04:29]} 7. Nxe4 {[%emt 0:00:06]} dxe4 {[%emt 0:00:05]} 8. h4 {[%emt 0:00:03]} Bd6 {[%emt 0:05:28]} 9. Bxd6 {[%emt 0:00:26]} cxd6 {[%emt 0:00:59]} 10. Qg4 {[%emt 0:07:19]} Nc6 {[%emt 0:06:43]} 11. Qxe4 {[%emt 0:18:15]} d5 {[%emt 0:00:24]} 12. Qe3 {[%emt 0:00:21]} g4 {[%emt 0:05:13]} 13. O-O-O {[%emt 0:00:24]} Bd7 {[%emt 0:01:43]} 14. f3 {[%emt 0:07:36]} Rc8 {[%emt 0:17:24]} 15. Ne2 {[%emt 0:15:12]} Qa5 {[%emt 0:18:38]} 16. Nc3 {[%emt 0:06:22]} Rg8 {[%emt 0:01:51]} 17. fxg4 {[%emt 0:04:32]} Nb4 {[%emt 0:08:45]} 18. Kb1 {[%emt 0:07:41]} Nxc2 {[%emt 0:05:46]} 19. Qxh6 {[%emt 0:17:56]} Rxc3 {[%emt 0:05:43]} 20. Qd2 {[%emt 0:00:03]} Na3+ {[%emt 0:00:38]} 21. Ka1 {[%emt 0:01:42]} Nc2+ {[%emt 0:00:11]} 22. Kb1 {[%emt 0:00:02]} Na3+ {[%emt 0:00:06]} 23. Ka1 {[%emt 0:01:05]} Ba4 {[%emt 0:03:35]} 24. Rh3 {[%emt 0:03:55]} Nc2+ {[%emt 0:00:24]} 25. Kb1 {[%emt 0:00:01]} Nb4 {[%emt 0:02:23]} 26. Rxc3 {[%emt 0:03:45]} Bc2+ {[%emt 0:00:19]} 27. Kc1 {[%emt 0:00:03]} Qxa2 {[%emt 0:00:30]} 28. Qe2 {[%emt 0:03:14]} Qb1+ {[%emt 0:00:50]} 29. Kd2 {[%emt 0:00:00]} Qxb2 {[%emt 0:00:54]} 30. Rxc2 {[%emt 0:00:44]} Qxc2+ {[%emt 0:00:23]} 31. Ke1 {[%emt 0:00:01]} Qc3+ {[%emt 0:00:39]} 32. Kf2 {[%emt 0:00:02]} Nc6 {[%emt 0:00:29]} 33. Rd3 {[%emt 0:00:53]} Qb4 {[%emt 0:00:08]} 34. g5 {[%emt 0:00:14]} Nxd4 {[%emt 0:00:34]} 35. Qg4 {[%emt 0:00:18]} Nc6 {[%emt 0:00:51]} 36. Qxb4 {[%emt 0:01:34]} Nxb4 {[%emt 0:00:02]} 37. Rb3 {[%emt 0:00:42]} a5 {[%emt 0:00:10]} 38. Rc3 {[%emt 0:00:06]} Kd7 {[%emt 0:00:33]} 39. Bb5+ {[%emt 0:00:04]} Kd6 {[%emt 0:00:27]} 40. Rf3 {[%emt 0:01:27]} Ke7 {[%emt 0:00:54]} 41. g4 {[%emt 0:30:33]} Nc6 {[%emt 0:30:56]} 42. Ra3 {[%emt 0:00:00]} Ra8 {[%emt 0:00:00]} 43. h5 {[%emt 0:00:00]} Nd4 {[%emt 0:00:00]} 44. Bd3 {[%emt 0:00:00]} b5 {[%emt 0:00:00]} 45. h6 {[%emt 0:00:00]} a4 {[%emt 0:00:00]} 46. h7 {[%emt 0:00:00]} e5 {[%emt 0:00:00]} 47. Rc3 {[%emt 0:00:00]} e4 {[%emt 0:00:00]} 48. Rc7+ {[%emt 0:00:00]} Ke6 {[%emt 0:00:00]} 49. Bf1 {[%emt 0:00:00]} a3 {[%emt 0:00:00]} 50. Ra7 {[%emt 0:00:00]} Rh8 {[%emt 0:00:00]} 51. Ke3 {[%emt 0:00:00]} Ke5 {[%emt 0:00:00]} 52. Re7+ {[%emt 0:00:38]} Ne6 {[%emt 0:00:00]} 53. Rxf7 {[%emt 0:03:12]} a2 {[%emt 0:00:00]} 54. Ra7 {[%emt 0:00:03]} Rxh7 {[%emt 0:00:00]} 55. Rxa2 {[%emt 0:00:03]} d4+ {[%emt 0:00:00]} 56. Kf2 {[%emt 0:00:02]} Rh2+ {[%emt 0:00:00]} 57. Bg2 {[%emt 0:00:02]} Nf4 {[%emt 0:00:00]} 0-1

[Event "FRA-ch Teams Top 16-A 2022"]
[Site "Chartres"]
[Date "2022.06.14"]
[Round "6.26"]
[White "Ragger, Markus"]
[Black "Saatdjian, Thomas"]
[Result "1/2-1/2"]
[ECO "B53"]
[WhiteElo "2636"]
[BlackElo "2271"]
[Annotator "RC"]
[PlyCount "150"]
[EventDate "2022.06.09"]
[EventType "team-tourn"]
[EventCountry "FRA"]
[SourceTitle "playchess.com"]
[Source "ChessBase"]
[SourceQuality "1"]
[TimeControl "40/5400+30:1800+30"]

1. e4 {[%emt 0:02:43]} c5 {[%emt 0:00:06]} 2. Nf3 {[%emt 0:00:19]} d6 {[%emt 0:00:11]} 3. d4 {[%emt 0:00:03]} cxd4 {[%emt 0:00:10]} 4. Qxd4 {[%emt 0:00:02]} Nc6 {[%emt 0:02:00]} 5. Qe3 {[%emt 0:00:42]} Nf6 {[%emt 0:04:03]} 6. Be2 {[%emt 0:00:06]} g6 {[%emt 0:00:07]} 7. O-O {[%emt 0:00:22]} Bg7 {[%emt 0:00:04]} 8. h3 {[%emt 0:00:15]} O-O {[%emt 0:00:06]} 9. Rd1 {[%emt 0:00:05]} Nd7 {[%emt 0:07:31]} 10. Nc3 {[%emt 0:01:05]} b6 {[%emt 0:00:23]} 11. Qf4 {[%emt 0:01:23]} Nde5 {[%emt 0:16:32]} 12. Nxe5 {[%emt 0:02:54]} Bxe5 {[%emt 0:05:45]} 13. Qh4 {[%emt 0:05:04]} Bf6 {[%emt 0:04:04]} 14. Bg5 {[%emt 0:09:53]} Bxg5 {[%emt 0:00:06]} 15. Qxg5 {[%emt 0:00:03]} Be6 {[%emt 0:00:36]} 16. f4 {[%emt 0:13:22]} f6 {[%emt 0:17:26]} 17. Qg3 {[%emt 0:07:22]} Qc8 {[%emt 0:04:10]} 18. Nd5 {[%emt 0:10:51]} Kh8 {[%emt 0:09:42]} 19. c3 {[%emt 0:05:23]} Qb7 {[%emt 0:03:53]} 20. Bf3 {[%emt 0:07:18]} Rac8 {[%emt 0:00:42]} 21. Qh4 {[%emt 0:05:29]} b5 {[%emt 0:06:40]} 22. b3 {[%emt 0:04:55]} a5 {[%emt 0:07:09]} 23. Rab1 {[%emt 0:02:06]} Qa7+ {[%emt 0:00:06]} 24. Qf2 {[%emt 0:03:58]} Qxf2+ {[%emt 0:10:58]} 25. Kxf2 {[%emt 0:17:17]} b4 {[%emt 0:00:00]} 26. c4 {[%emt 0:00:00]} g5 {[%emt 0:00:00]} 27. Rbc1 {[%emt 0:00:00]} gxf4 {[%emt 0:00:00]} 28. Nxf4 {[%emt 0:00:00]} Bf7 {[%emt 0:00:00]} 29. Bg4 {[%emt 0:00:00]} Ra8 {[%emt 0:00:00]} 30. Be6 {[%emt 0:00:00]} Kg7 {[%emt 0:00:37]} 31. Bd5 {[%emt 0:00:00]} Ra6 {[%emt 0:00:09]} 32. c5 {[%emt 0:00:00]} dxc5 {[%emt 0:00:23]} 33. Rxc5 {[%emt 0:00:00]} Ne5 {[%emt 0:00:08]} 34. Rc7 {[%emt 0:00:00]} Re8 {[%emt 0:00:02]} 35. Rd4 {[%emt 0:00:00]} Kf8 {[%emt 0:01:00]} 36. Bxf7 {[%emt 0:00:00]} Kxf7 {[%emt 0:00:02]} 37. Ke3 {[%emt 0:00:12]} Rea8 {[%emt 0:01:28]} 38. Nd3 {[%emt 0:02:16]} Nxd3 {[%emt 0:01:17]} 39. Rxd3 {[%emt 0:00:23]} a4 {[%emt 0:00:27]} 40. Rb7 {[%emt 0:01:01]} axb3 {[%emt 0:00:10]} 41. axb3 {[%emt 0:30:01]} Ra2 {[%emt 0:31:37]} 42. Rdd7 {[%emt 0:00:00]} Re8 {[%emt 0:00:00]} 43. Kf3 {[%emt 0:00:00]} Ke6 {[%emt 0:00:00]} 44. Rdc7 {[%emt 0:00:00]} Kd6 {[%emt 0:00:00]} 45. Rc4 {[%emt 0:00:00]} Rg8 {[%emt 0:00:00]} 46. g4 {[%emt 0:00:00]} h5 {[%emt 0:00:00]} 47. Rb6+ {[%emt 0:00:00]} Kd7 {[%emt 0:00:00]} 48. Rb7+ {[%emt 0:00:00]} Ke6 {[%emt 0:00:00]} 49. Rc6+ {[%emt 0:00:00]} Kf7 {[%emt 0:00:00]} 50. Rcc7 {[%emt 0:00:00]} hxg4+ {[%emt 0:00:00]} 51. hxg4 {[%emt 0:00:00]} Re8 {[%emt 0:00:00]} 52. Rxb4 {[%emt 0:02:41]} Rd8 {[%emt 0:00:00]} 53. e5 {[%emt 0:01:20]} fxe5 {[%emt 0:00:00]} 54. g5 {[%emt 0:04:09]} Rd3+ {[%emt 0:00:00]} 55. Ke4 {[%emt 0:00:09]} Rg3 {[%emt 0:00:00]} 56. Rbb7 {[%emt 0:01:15]} Rxg5 {[%emt 0:00:00]} 57. Rxe7+ {[%emt 0:00:01]} Kf6 {[%emt 0:00:00]} 58. Rf7+ {[%emt 0:00:46]} Ke6 {[%emt 0:00:01]} 59. Rfe7+ {[%emt 0:00:38]} Kf6 {[%emt 0:00:02]} 60. Rf7+ {[%emt 0:00:06]} Ke6 {[%emt 0:00:03]} 61. Rh7 {[%emt 0:00:31]} Rg4+ {[%emt 0:00:59]} 62. Kf3 {[%emt 0:00:05]} Rf4+ {[%emt 0:00:14]} 63. Ke3 {[%emt 0:00:07]} Rb2 {[%emt 0:07:26]} 64. Rh6+ {[%emt 0:00:31]} Kf5 {[%emt 0:00:01]} 65. Rh5+ {[%emt 0:01:12]} Kg4 {[%emt 0:01:31]} 66. Rxe5 {[%emt 0:00:06]} Rf3+ {[%emt 0:00:03]} 67. Ke4 {[%emt 0:01:27]} Rbxb3 {[%emt 0:00:22]} 68. Rg7+ {[%emt 0:00:05]} Kh4 {[%emt 0:00:01]} 69. Rh7+ {[%emt 0:00:24]} Kg4 {[%emt 0:00:26]} 70. Rg7+ {[%emt 0:00:04]} Kh4 {[%emt 0:00:03]} 71. Kd4 {[%emt 0:01:12]} Rbd3+ {[%emt 0:00:23]} 72. Kc5 {[%emt 0:00:14]} Rc3+ {[%emt 0:00:03]} 73. Kd6 {[%emt 0:00:15]} Rcd3+ {[%emt 0:00:01]} 74. Ke6 {[%emt 0:00:07]} Rde3 {[%emt 0:00:04]} 75. Rxe3 {[%emt 0:00:14]} Rxe3+ {[%emt 0:06:27]} 1/2-1/2

[Event "FRA-ch Teams Top 16-A 2022"]
[Site "Chartres"]
[Date "2022.06.14"]
[Round "6.27"]
[White "Sochacki, Wojtek"]
[Black "Maze, Sebastien"]
[Result "0-1"]
[ECO "B11"]
[WhiteElo "2324"]
[BlackElo "2519"]
[Annotator "RC"]
[PlyCount "46"]
[EventDate "2022.06.09"]
[EventType "team-tourn"]
[EventCountry "FRA"]
[SourceTitle "playchess.com"]
[Source "ChessBase"]
[SourceQuality "1"]
[TimeControl "40/5400+30:1800+30"]

1. e4 {[%emt 0:07:52]} c6 {[%emt 0:00:07]} 2. Nf3 {[%emt 0:00:23]} d5 {[%emt 0:00:04]} 3. Nc3 {[%emt 0:00:07]} Bg4 {[%emt 0:00:21]} 4. h3 {[%emt 0:00:05]} Bxf3 {[%emt 0:00:24]} 5. Qxf3 {[%emt 0:00:06]} e6 {[%emt 0:00:07]} 6. Be2 {[%emt 0:02:51]} g6 {[%emt 0:01:00]} 7. O-O {[%emt 0:04:51]} Bg7 {[%emt 0:00:05]} 8. d3 {[%emt 0:14:55]} Nd7 {[%emt 0:03:34]} 9. Re1 {[%emt 0:02:31]} Ne7 {[%emt 0:02:10]} 10. Bf1 {[%emt 0:01:19]} O-O {[%emt 0:07:52]} 11. Bg5 {[%emt 0:01:24]} Re8 {[%emt 0:09:46]} 12. Qe2 {[%emt 0:02:17]} h6 {[%emt 0:15:10]} 13. Bd2 {[%emt 0:00:09]} a5 {[%emt 0:01:13]} 14. a4 {[%emt 0:06:14]} Qb6 {[%emt 0:01:19]} 15. Kh1 {[%emt 0:15:42]} Nc5 {[%emt 0:02:39]} 16. Reb1 {[%emt 0:14:19]} Rad8 {[%emt 0:06:12]} 17. Qe1 {[%emt 0:01:21]} Qc7 {[%emt 0:01:58]} 18. b4 {[%emt 0:06:52]} axb4 {[%emt 0:00:15]} 19. Rxb4 {[%emt 0:00:06]} Ra8 {[%emt 0:00:48]} 20. Qe3 {[%emt 0:09:48]} Qa5 {[%emt 0:18:04]} 21. Rab1 {[%emt 0:02:03]} Na6 {[%emt 0:00:08]} 22. R4b3 {[%emt 0:04:17]} d4 {[%emt 0:00:47]} 23. Nd5 {[%emt 0:00:18]} exd5 {[%emt 0:00:54]} 0-1

[Event "FRA-ch Teams Top 16-A 2022"]
[Site "Chartres"]
[Date "2022.06.14"]
[Round "6.28"]
[White "Fressinet, Laurent"]
[Black "Cantin, Loic"]
[Result "1-0"]
[ECO "A46"]
[WhiteElo "2630"]
[BlackElo "2199"]
[Annotator "RC"]
[PlyCount "53"]
[EventDate "2022.06.09"]
[EventType "team-tourn"]
[EventCountry "FRA"]
[SourceTitle "playchess.com"]
[Source "ChessBase"]
[SourceQuality "1"]
[TimeControl "40/5400+30:1800+30"]

1. d4 {[%emt 0:02:37]} Nf6 {[%emt 0:00:53]} 2. Nf3 {[%emt 0:00:07]} d6 {[%emt 0:01:09]} 3. g3 {[%emt 0:01:38]} Bf5 {[%emt 0:03:36]} 4. Bg2 {[%emt 0:01:57]} Qc8 {[%emt 0:07:13]} 5. h3 {[%emt 0:08:05]} g6 {[%emt 0:06:05]} 6. g4 {[%emt 0:10:04]} Bd7 {[%emt 0:04:18]} 7. Nc3 {[%emt 0:00:21]} Bg7 {[%emt 0:01:11]} 8. e4 {[%emt 0:01:30]} O-O {[%emt 0:01:39]} 9. e5 {[%emt 0:09:34]} Ne8 {[%emt 0:01:49]} 10. Bf4 {[%emt 0:01:07]} f6 {[%emt 0:04:35]} 11. Bg3 {[%emt 0:04:33]} Nc6 {[%emt 0:15:03]} 12. e6 {[%emt 0:04:10]} Bxe6 {[%emt 0:00:17]} 13. d5 {[%emt 0:00:05]} Bd7 {[%emt 0:00:24]} 14. dxc6 {[%emt 0:00:48]} bxc6 {[%emt 0:00:44]} 15. Nd4 {[%emt 0:05:16]} Kh8 {[%emt 0:11:47]} 16. O-O {[%emt 0:10:27]} d5 {[%emt 0:04:29]} 17. f4 {[%emt 0:05:43]} Nd6 {[%emt 0:04:27]} 18. f5 {[%emt 0:10:45]} Nc4 {[%emt 0:08:03]} 19. Qe2 {[%emt 0:02:06]} Bh6 {[%emt 0:02:27]} 20. Bf4 {[%emt 0:03:03]} Bxf4 {[%emt 0:03:49]} 21. Rxf4 {[%emt 0:00:08]} Re8 {[%emt 0:01:13]} 22. Nxc6 {[%emt 0:07:13]} Qb7 {[%emt 0:11:41]} 23. Nxd5 {[%emt 0:01:02]} Qxb2 {[%emt 0:02:30]} 24. Re1 {[%emt 0:02:44]} Nd6 {[%emt 0:01:12]} 25. Ndxe7 {[%emt 0:03:37]} g5 {[%emt 0:00:42]} 26. Rff1 {[%emt 0:01:27]} Nc8 {[%emt 0:00:27]} 27. Qf2 {[%emt 0:00:45]} 1-0